fUST/lending_fUST_20260220
["ID","MTS","AMOUNT","RATE_DAILY","PERIOD"]
[406008768,1771534590053,5000.0,7.001e-05,2]
[406008769,1771534611624,405.42133494,7.001e-05,2]
[406008770,1771534640736,5000.0,7.001e-05,2]
[406008771,1771534662984,5000.0,7.001e-05,2]
[406008772,1771534685559,5000.0,7.001e-05,2]
[406008773,1771534707768,5000.0,7.001e-05,2]
[406008774,1771534729634,5000.0,7.001e-05,2]
[406008775,1771534751445,5000.0,7.001e-05,2]
[406008776,1771534775997,5000.0,7.001e-05,2]
[406008777,1771534798279,5000.0,7.001e-05,2]
[406008778,1771534820854,5000.0,7.001e-05,2]
[406008779,1771534844537,5000.0,7.001e-05,2]
[406008780,1771534862706,-300.0,7.129e-05,2]
[406008781,1771534862731,-300.0,7.13e-05,2]
[406008782,1771534862745,-835.93578112,7.13e-05,2]
[406008783,1771534867275,5000.0,7.001e-05,2]
[406008784,1771534889588,5000.0,7.001e-05,2]
[406008785,1771534912814,5000.0,7.001e-05,2]
[406008786,1771534917098,257.8221982,6.591e-05,2]
[406008787,1771534935113,5000.0,7.001e-05,2]
[406008788,1771534943639,5000.0,7.001e-05,2]
[406008789,1771534958916,5000.0,7.001e-05,2]
[406008790,1771534967155,5000.0,7.001e-05,2]
[406008791,1771534982859,5000.0,7.001e-05,2]
[406008792,1771534990663,5000.0,7.001e-05,2]
[406008793,1771535006482,5000.0,7.001e-05,2]
[406008794,1771535014990,5000.0,7.001e-05,2]
[406008795,1771535031890,5000.0,7.001e-05,2]
[406008796,1771535040127,5000.0,7.001e-05,2]
[406008797,1771535056136,5000.0,7.001e-05,2]
[406008798,1771535064043,5000.0,7.001e-05,2]
[406008799,1771535070609,170.604504,5.923e-05,2]
[406008800,1771535079546,5000.0,7.001e-05,2]
[406008801,1771535087802,5000.0,7.001e-05,2]
[406008802,1771535103568,5000.0,7.001e-05,2]
[406008803,1771535111842,5000.0,7.001e-05,2]
[406008804,1771535127535,5000.0,7.001e-05,2]
[406008805,1771535135428,5000.0,7.001e-05,2]
[406008806,1771535150389,5000.0,7.001e-05,2]
[406008807,1771535158659,5000.0,7.001e-05,2]
[406008808,1771535174064,5000.0,7.001e-05,2]
[406008809,1771535182139,4138.49562555,7.001e-05,2]
[406008810,1771535198661,5000.0,7.001e-05,2]
[406008811,1771535222297,5000.0,7.001e-05,2]
[406008812,1771535244427,5000.0,7.001e-05,2]
[406008813,1771535266785,3021.18791008,7.001e-05,2]
[406008814,1771535281994,215.55614072,7.001e-05,2]
[406008815,1771535290469,5000.0,7.001e-05,2]
[406008838,1771535432039,-1200.0,7.126e-05,2]
[406008840,1771535432049,-150.0,7.127e-05,2]
[406008842,1771535432058,-300.0,7.127e-05,2]
[406008844,1771535432067,-300.0,7.127e-05,2]
[406008846,1771535432077,-300.0,7.127e-05,2]
[406008848,1771535432086,-300.0,7.127e-05,2]
[406008850,1771535432095,-300.0,7.127e-05,2]
[406008852,1771535432104,-300.0,7.127e-05,2]
[406008854,1771535432114,-1233.89799547,7.128e-05,2]
[406008855,1771535432125,-557.26213137,7.128e-05,2]
[406008856,1771535432134,-3131.49457888,7.129e-05,2]
[406008857,1771535432146,-1184.90664021,7.129e-05,2]
[406008858,1771535434939,10000.0,6.129e-05,2]
[406008864,1771535438193,-45683.59878091,7.129e-05,2]
[406008865,1771535438205,-500.0,7.129e-05,2]
[406008866,1771535438215,-500.0,7.129e-05,2]
[406008867,1771535438224,-436.06245733,7.129e-05,2]
[406008868,1771535438233,-500.0,7.129e-05,2]
[406008869,1771535438243,-500.0,7.129e-05,2]
[406008870,1771535438252,-501.09266261,7.129e-05,2]
[406008871,1771535438261,-500.0,7.129e-05,2]
[406008872,1771535438270,-500.0,7.129e-05,2]
[406008873,1771535438279,-154.61219678,7.129e-05,2]
[406008874,1771535438289,-544.46046899,7.129e-05,2]
[406008875,1771535438298,-544.46046899,7.129e-05,2]
[406008876,1771535438308,-544.46046899,7.129e-05,2]
[406008877,1771535438408,-544.46046899,7.129e-05,2]
[406008878,1771535438451,-544.46046899,7.129e-05,2]
[406008879,1771535438461,-544.46046899,7.129e-05,2]
[406008880,1771535438470,-544.46046899,7.129e-05,2]
[406008881,1771535438480,-544.46046899,7.129e-05,2]
[406008882,1771535438489,-544.46046899,7.129e-05,2]
[406008883,1771535438498,-544.46046899,7.129e-05,2]
[406008884,1771535438507,-544.46046899,7.129e-05,2]
[406008885,1771535438516,-544.46046899,7.129e-05,2]
[406008886,1771535438525,-544.46046899,7.129e-05,2]
[406008887,1771535438534,-544.46046899,7.129e-05,2]
[406008888,1771535438544,-544.46046899,7.129e-05,2]
[406008889,1771535438553,-544.46046899,7.129e-05,2]
[406008890,1771535438562,-544.46046899,7.129e-05,2]
[406008891,1771535438571,-544.46046899,7.129e-05,2]
[406008892,1771535438580,-544.46046899,7.129e-05,2]
[406008893,1771535438589,-544.46046899,7.129e-05,2]
[406008894,1771535438599,-544.46046899,7.129e-05,2]
[406008895,1771535438608,-544.46046899,7.129e-05,2]
[406008896,1771535438617,-544.46046899,7.129e-05,2]
[406008897,1771535438626,-544.46046899,7.129e-05,2]
[406008898,1771535438635,-544.46046899,7.129e-05,2]
[406008899,1771535438644,-544.46046899,7.129e-05,2]
[406008900,1771535438654,-544.46046899,7.129e-05,2]
[406008901,1771535438664,-544.46046899,7.129e-05,2]
[406008902,1771535438673,-544.46046899,7.129e-05,2]
[406008903,1771535438683,-544.46046899,7.129e-05,2]
[406008904,1771535438693,-544.46046899,7.129e-05,2]
[406008905,1771535438702,-544.46046899,7.129e-05,2]
[406008906,1771535438712,-544.46046899,7.129e-05,2]
[406008907,1771535438722,-544.46046899,7.129e-05,2]
[406008908,1771535438731,-544.46046899,7.129e-05,2]
[406008909,1771535438741,-544.46046899,7.129e-05,2]
[406008910,1771535438751,-544.46046899,7.129e-05,2]
[406008911,1771535438760,-306.39536134,7.129e-05,2]
[406008912,1771535438780,-238.06510765,7.129e-05,2]
[406008913,1771535438789,-544.46046899,7.129e-05,2]
[406008914,1771535438798,-544.46046899,7.129e-05,2]
[406008915,1771535438808,-544.46046899,7.129e-05,2]
[406008916,1771535438817,-485.39387889,7.129e-05,2]
[406008917,1771535438828,-59.0665901,7.129e-05,2]
[406008918,1771535438837,-544.46046899,7.129e-05,2]
[406008919,1771535438846,-544.46046899,7.129e-05,2]
[406008920,1771535438856,-544.46046899,7.129e-05,2]
[406008921,1771535438866,-544.46046899,7.129e-05,2]
[406008922,1771535438875,-544.46046899,7.129e-05,2]
[406008923,1771535438885,-544.46046899,7.129e-05,2]
[406008924,1771535438895,-544.46046899,7.129e-05,2]
[406008925,1771535438904,-544.46046899,7.129e-05,2]
[406008926,1771535438913,-544.46046899,7.129e-05,2]
[406008927,1771535438922,-544.46046899,7.129e-05,2]
[406008928,1771535438931,-544.46046899,7.129e-05,2]
[406008929,1771535438941,-303.97991122,7.129e-05,2]
[406008933,1771535440434,-229.5913484,7.129e-05,2]
[406008934,1771535440444,-533.57125962,7.129e-05,2]
[406008935,1771535440453,-533.57125962,7.129e-05,2]
[406008936,1771535440462,-533.57125962,7.129e-05,2]
[406008937,1771535440471,-96.42945146,7.129e-05,2]
[406008952,1771535445866,-105.23658536,7.129e-05,2]
[406008953,1771535445878,-331.9052228,7.129e-05,2]
[406008954,1771535445888,-525.42935805,7.129e-05,2]
[406008956,1771535445900,-8.14190157,7.129e-05,2]
[406008958,1771535445910,-413.39509843,7.129e-05,2]
[406008960,1771535445921,-120.17616119,7.129e-05,2]
[406008962,1771535445931,-533.57125962,7.129e-05,2]
[406008964,1771535445940,-153.24385473,7.129e-05,2]
[406008967,1771535446171,-380.32740489,7.129e-05,2]
[406008968,1771535446181,-533.57125962,7.129e-05,2]
[406008969,1771535446190,-443.66758496,7.129e-05,2]
[406008971,1771535673812,164.519411,6.178e-05,2]
[406008972,1771535723406,218.5455714,6.128e-05,2]
[406008973,1771536004698,401.5607608,6.123e-05,2]
[406008974,1771536110206,931.3452108,6.173e-05,2]
[406008975,1771536433127,560.4913344,7.001e-05,2]
[406008976,1771536440937,5000.0,7.001e-05,2]
[406009003,1771536499700,4439.5086656,7.001e-05,2]
[406009004,1771536616257,367.15,7e-05,3]
[406009034,1771536632231,-471.17,7.1e-05,2]
[406009036,1771536632241,-125.83,7.12e-05,2]
[406009038,1771536632252,-24.17,7.12e-05,2]
[406009040,1771536632261,-300.0,7.12e-05,2]
[406009042,1771536632271,-300.0,7.12e-05,2]
[406009044,1771536632280,-1112.30298281,7.122e-05,2]
[406009046,1771536632289,-500.0,7.122e-05,2]
[406009048,1771536632298,-300.0,7.122e-05,2]
[406009050,1771536632308,-300.0,7.122e-05,2]
[406009052,1771536632317,-300.0,7.122e-05,2]
[406009054,1771536632326,-300.0,7.122e-05,2]
[406009056,1771536632336,-505.41148499,7.122e-05,2]
[406009058,1771536632352,-694.58851501,7.122e-05,2]
[406009060,1771536632361,-2740.49493943,7.123e-05,2]
[406009084,1771536638441,-1583.86677274,7.123e-05,2]
[406009085,1771536638455,-14910.99181507,7.123e-05,2]
[406009092,1771536640637,-1178.52779707,7.123e-05,2]
[406009093,1771536640695,-1761.94573887,7.123e-05,2]
[406009104,1771536645953,-1130.97113377,7.123e-05,2]
[406009105,1771536645965,-570.0,7.123e-05,2]
[406009116,1771536646354,-6048.52205126,7.123e-05,2]
[406009117,1771536646412,-1000.0,7.123e-05,2]
[406009126,1771536662468,-300.0,7.122e-05,2]
[406009127,1771536662510,-2097.84827764,7.123e-05,2]
[406009128,1771536691910,-300.0,7.123e-05,2]
[406009129,1771536725577,2335.2992539,6.176e-05,2]
[406009141,1771537182982,500.0,6.65e-05,2]
[406009142,1771537207477,705.3106652,6.124e-05,2]
[406009143,1771537242265,1724.862043,6.782e-05,2]
[406009172,1771537832421,-1160.72508389,7.068e-05,2]
[406009174,1771537832432,-564.13695911,7.068e-05,2]
[406009176,1771537832442,-150.0,7.092e-05,2]
[406009178,1771537832451,-1200.0,7.114e-05,2]
[406009180,1771537832460,-300.0,7.115e-05,2]
[406009182,1771537832469,-300.0,7.115e-05,2]
[406009184,1771537832478,-299.30867008,7.115e-05,2]
[406009187,1771537832497,-0.69132992,7.115e-05,2]
[406009189,1771537832507,-300.0,7.115e-05,2]
[406009191,1771537832516,-300.0,7.115e-05,2]
[406009193,1771537832525,-184.44092333,7.117e-05,2]
[406009246,1771537838589,-15887.93598147,7.117e-05,2]
[406009444,1771537845995,-3476.33145951,7.117e-05,2]
[406009446,1771537846007,-397.18942429,7.117e-05,2]
[406009452,1771537846057,-806.99127554,7.117e-05,2]
[406009454,1771537846069,-1048.95,7.117e-05,2]
[406009507,1771537846539,-28198.16093586,7.117e-05,2]
[406009509,1771537846548,-151.0,7.118e-05,2]
[406009511,1771537846558,-165.109089,7.118e-05,2]
[406009513,1771537846567,-13258.69412201,7.125e-05,2]
[406009515,1771537846578,-983.43426962,7.125e-05,2]
[406009525,1771537846656,-15495.0,7.125e-05,2]
[406009527,1771537846667,-1200.0,7.125e-05,2]
[406009573,1771537891046,178.7341795,6.127e-05,2]
[406009574,1771538016875,57470.6089351,6.122e-05,2]
[406009575,1771538123480,350.93,7e-05,2]
[406010501,1771538462428,-300.0,7.111e-05,2]
[406010502,1771538462456,-300.0,7.111e-05,2]
[406010503,1771538462484,-300.0,7.111e-05,2]
[406010504,1771538462543,-906.71985531,7.111e-05,2]
[406010505,1771538472286,1370.2688399,6.118e-05,2]
[406010507,1771538491691,-300.0,7.11e-05,2]
[406010508,1771538491722,-6.71985531,7.111e-05,2]
[406010509,1771538491758,-286.56028938,7.111e-05,2]
[406010510,1771538520955,-6.71985531,7.111e-05,2]
[406010511,1771538520981,-293.28014469,7.111e-05,2]
[406010741,1771538578848,2706.71985531,7.001e-05,2]
[406010742,1771538689988,4308.14506023,7.001e-05,2]
[406010757,1771538847743,10000.0,6.117e-05,2]
[406010765,1771539031583,-300.0,7.107e-05,2]
[406010766,1771539031594,-155.0,7.107e-05,2]
[406010768,1771539031604,-300.0,7.107e-05,2]
[406010770,1771539031614,-300.0,7.107e-05,2]
[406010773,1771539031624,-300.0,7.107e-05,2]
[406010774,1771539031635,-300.0,7.107e-05,2]
[406010775,1771539031645,-1200.0,7.107e-05,2]
[406010776,1771539031654,-159.56249526,7.108e-05,2]
[406010777,1771539031663,-504.51920579,7.108e-05,2]
[406010778,1771539031672,-500.0,7.108e-05,2]
[406010779,1771539031681,-500.0,7.108e-05,2]
[406010780,1771539031691,-500.0,7.108e-05,2]
[406010781,1771539031700,-500.0,7.108e-05,2]
[406010782,1771539031709,-500.0,7.108e-05,2]
[406010783,1771539031719,-500.0,7.108e-05,2]
[406010784,1771539031729,-500.0,7.108e-05,2]
[406010785,1771539031738,-500.0,7.108e-05,2]
[406010786,1771539031748,-500.0,7.108e-05,2]
[406010787,1771539031757,-40.97117974,7.108e-05,2]
[406010808,1771539040183,-434.57112228,7.083e-05,2]
[406010809,1771539040195,-459.02882026,7.108e-05,2]
[406010810,1771539040204,-186.98326421,7.108e-05,2]
[406010811,1771539040215,-500.0,7.108e-05,2]
[406010812,1771539040225,-500.0,7.108e-05,2]
[406010813,1771539040234,-650.0,7.108e-05,2]
[406010814,1771539040243,-500.0,7.108e-05,2]
[406010815,1771539040252,-500.0,7.108e-05,2]
[406010816,1771539040262,-60.41679325,7.108e-05,2]
[406010817,1771539040273,-439.58320675,7.108e-05,2]
[406010818,1771539040283,-500.0,7.108e-05,2]
[406010819,1771539040292,-235.79380018,7.108e-05,2]
[406010832,1771539044809,-308.79353915,7.108e-05,2]
[406010833,1771539044819,-500.0,7.108e-05,2]
[406010834,1771539044829,-465.36834244,7.108e-05,2]
[406010835,1771539044841,-34.63165756,7.108e-05,2]
[406010836,1771539044851,-500.0,7.108e-05,2]
[406010837,1771539044860,-500.0,7.108e-05,2]
[406010838,1771539044870,-500.0,7.108e-05,2]
[406010839,1771539044879,-500.0,7.108e-05,2]
[406010840,1771539044889,-500.0,7.108e-05,2]
[406010841,1771539044900,-500.0,7.108e-05,2]
[406010842,1771539044909,-500.0,7.108e-05,2]
[406010843,1771539044919,-500.0,7.108e-05,2]
[406010844,1771539044930,-500.0,7.108e-05,2]
[406010845,1771539044939,-216.29646085,7.108e-05,2]
[406010851,1771539045713,-283.70353915,7.108e-05,2]
[406010852,1771539045724,-500.0,7.108e-05,2]
[406010853,1771539045734,-500.0,7.108e-05,2]
[406010854,1771539045743,-500.0,7.108e-05,2]
[406010855,1771539045753,-500.0,7.108e-05,2]
[406010856,1771539045763,-500.0,7.108e-05,2]
[406010857,1771539045772,-400.0,7.108e-05,2]
[406010858,1771539045782,-500.0,7.108e-05,2]
[406010859,1771539045791,-500.0,7.108e-05,2]
[406010860,1771539045800,-500.0,7.108e-05,2]
[406010861,1771539045811,-500.0,7.108e-05,2]
[406010862,1771539045820,-500.0,7.108e-05,2]
[406010863,1771539045829,-500.0,7.108e-05,2]
[406010864,1771539045838,-500.0,7.108e-05,2]
[406010865,1771539045847,-500.0,7.108e-05,2]
[406010866,1771539045857,-500.0,7.108e-05,2]
[406010867,1771539045866,-500.0,7.108e-05,2]
[406010868,1771539045875,-500.0,7.108e-05,2]
[406010869,1771539045885,-500.0,7.108e-05,2]
[406010870,1771539045895,-500.0,7.108e-05,2]
[406010871,1771539045904,-500.0,7.108e-05,2]
[406010872,1771539045914,-500.0,7.108e-05,2]
[406010873,1771539045924,-500.0,7.108e-05,2]
[406010874,1771539045934,-500.0,7.108e-05,2]
[406010875,1771539045943,-500.0,7.108e-05,2]
[406010876,1771539045952,-500.0,7.108e-05,2]
[406010877,1771539045962,-550.0,7.108e-05,2]
[406010878,1771539045971,-46.74918508,7.108e-05,2]
[406010879,1771539045983,-453.25081492,7.108e-05,2]
[406010880,1771539045992,-500.0,7.108e-05,2]
[406010881,1771539046002,-500.0,7.108e-05,2]
[406010882,1771539046011,-500.0,7.108e-05,2]
[406010883,1771539046022,-500.0,7.108e-05,2]
[406010884,1771539046033,-500.0,7.108e-05,2]
[406010885,1771539046043,-500.0,7.108e-05,2]
[406010886,1771539046052,-500.0,7.108e-05,2]
[406010887,1771539046061,-458.2886423,7.108e-05,2]
[406010898,1771539064747,5000.0,7.001e-05,2]
[406010899,1771539087353,1915.63852979,7.001e-05,2]
[406010900,1771539265206,3254.02055628,7.001e-05,2]
[406010906,1771539418141,5000.0,7.001e-05,2]
[406010907,1771539640420,5000.0,7.001e-05,2]
[406010908,1771539663306,5000.0,7.001e-05,2]
[406010909,1771539686354,5000.0,7.001e-05,2]
[406010910,1771539709230,5000.0,7.001e-05,2]
[406010911,1771539732693,5000.0,7.001e-05,2]
[406010912,1771539755999,5000.0,7.001e-05,2]
[406010913,1771539778603,5000.0,7.001e-05,2]
[406010918,1771539801454,5000.0,7.001e-05,2]
[406010919,1771539823900,5000.0,7.001e-05,2]
[406010920,1771539846541,5000.0,7.001e-05,2]
[406010921,1771539869748,5000.0,7.001e-05,2]
[406010922,1771539891955,5000.0,7.001e-05,2]
[406010925,1771539915909,5000.0,7.001e-05,2]
[406010926,1771539938603,5000.0,7.001e-05,2]
[406010927,1771539961518,5000.0,7.001e-05,2]
[406010928,1771539969385,1151.00752291,7.001e-05,2]
[406010929,1771539984911,5000.0,7.001e-05,2]
[406010930,1771540007684,5000.0,7.001e-05,2]
[406010931,1771540030994,5000.0,7.001e-05,2]
[406010932,1771540053649,5000.0,7.001e-05,2]
[406010933,1771540058487,250.0,6.943e-05,2]
[406010934,1771540076270,5000.0,7.001e-05,2]
[406010935,1771540099131,5000.0,7.001e-05,2]
[406010936,1771540107043,5000.0,7.001e-05,2]
[406010937,1771540129856,5000.0,7.001e-05,2]
[406010938,1771540153094,991.63311137,7.001e-05,2]
[406010952,1771540231745,-500.0,7.097e-05,2]
[406010953,1771540231754,-500.0,7.097e-05,2]
[406010954,1771540231763,-500.0,7.097e-05,2]
[406010955,1771540231772,-93.25434795,7.097e-05,2]
[406010958,1771540231857,-406.74565205,7.097e-05,2]
[406010959,1771540231867,-500.0,7.097e-05,2]
[406010960,1771540231876,-500.0,7.097e-05,2]
[406010961,1771540231887,-500.0,7.097e-05,2]
[406010962,1771540231897,-500.0,7.097e-05,2]
[406010963,1771540231906,-300.0,7.097e-05,2]
[406010964,1771540231916,-300.0,7.097e-05,2]
[406010965,1771540231926,-76.62987091,7.097e-05,2]
[406010986,1771540240054,-500.0,7.097e-05,2]
[406010987,1771540240065,-500.0,7.097e-05,2]
[406010988,1771540240076,-500.0,7.097e-05,2]
[406010989,1771540240085,-500.0,7.097e-05,2]
[406010990,1771540240095,-500.0,7.097e-05,2]
[406010991,1771540240106,-282.73192659,7.097e-05,2]
[406010992,1771540240116,-500.0,7.097e-05,2]
[406010993,1771540240125,-39.08875299,7.097e-05,2]
[406010994,1771540240144,-460.91124701,7.097e-05,2]
[406010995,1771540240153,-500.0,7.097e-05,2]
[406010996,1771540240163,-500.0,7.097e-05,2]
[406010997,1771540240172,-500.0,7.097e-05,2]
[406010998,1771540240180,-500.0,7.097e-05,2]
[406010999,1771540240190,-191.75782079,7.097e-05,2]
[406011000,1771540240302,-308.24217921,7.097e-05,2]
[406011001,1771540240312,-187.59806579,7.097e-05,2]
[406011010,1771540246168,-312.40193421,7.097e-05,2]
[406011011,1771540246177,-500.0,7.097e-05,2]
[406011012,1771540246186,-500.0,7.097e-05,2]
[406011013,1771540246198,-500.0,7.097e-05,2]
[406011014,1771540246208,-500.0,7.097e-05,2]
[406011015,1771540246217,-500.0,7.097e-05,2]
[406011016,1771540246226,-500.0,7.097e-05,2]
[406011017,1771540246236,-441.17568179,7.097e-05,2]
[406011048,1771540262461,-58.82431821,7.097e-05,2]
[406011049,1771540262489,-476.27746794,7.097e-05,2]
[406011050,1771540262505,-23.72253206,7.097e-05,2]
[406011051,1771540262515,-35.10178615,7.097e-05,2]
[406011052,1771540262526,-464.89821385,7.097e-05,2]
[406011053,1771540262535,-35.10178615,7.097e-05,2]
[406011061,1771540587426,222.11142417,6.996e-05,2]
[406011063,1771540693488,5000.0,7.001e-05,2]
[406011064,1771540716222,5000.0,7.001e-05,2]
[406011065,1771540724041,5000.0,7.001e-05,2]
[406011066,1771540739525,5000.0,7.001e-05,2]
[406011067,1771540747605,5000.0,7.001e-05,2]
[406011068,1771540763300,5000.0,7.001e-05,2]
[406011069,1771540787571,5000.0,7.001e-05,2]
[406011070,1771540795832,5000.0,7.001e-05,2]
[406011071,1771540810928,5000.0,7.001e-05,2]
[406011072,1771540818990,5000.0,7.001e-05,2]
[406011073,1771540835902,5000.0,7.001e-05,2]
[406011074,1771540843706,4966.49001621,7.001e-05,2]
[406011075,1771540859133,5000.0,7.001e-05,2]
[406011076,1771540874772,5000.0,7.001e-05,2]
[406011077,1771540883184,5000.0,7.001e-05,2]
[406011078,1771540898754,5000.0,7.001e-05,2]
[406011079,1771540906646,5000.0,7.001e-05,2]
[406011080,1771540929128,5000.0,7.001e-05,2]
[406011081,1771540944781,5000.0,7.001e-05,2]
[406011082,1771540952608,5000.0,7.001e-05,2]
[406011083,1771540968464,522.30520716,7.001e-05,2]
[406011084,1771540976150,5000.0,7.001e-05,2]
[406011085,1771540999078,5000.0,7.001e-05,2]
[406011086,1771541022237,5000.0,7.001e-05,2]
[406011087,1771541032898,314.02,0.00014,30]
[406011110,1771541045120,5000.0,7.001e-05,2]
[406011154,1771541067939,5000.0,7.001e-05,2]
[406011165,1771541090588,5000.0,7.001e-05,2]
[406011166,1771541165159,1508.94,6.8e-07,2]
[406011167,1771541317499,208.6507382,6.99e-05,2]
[406011168,1771541356766,10000.0,6.093e-05,2]
[406011169,1771541386342,702.90476288,7.001e-05,2]
[406011170,1771541404801,152.49,6.5e-05,2]
[406011171,1771541405423,152.49,6.5e-05,2]
[406011172,1771541407150,152.49,6.5e-05,2]
[406011173,1771541407724,152.49,6.5e-05,2]
[406011174,1771541408294,152.49,6.5e-05,2]
[406011175,1771541408780,152.49,6.5e-05,2]
[406011176,1771541409421,152.49,6.6e-05,2]
[406011177,1771541410006,152.49,6.6e-05,2]
[406011178,1771541410689,152.49,6.6e-05,2]
[406011179,1771541411511,152.49,6.6e-05,2]
[406011180,1771541411875,152.49,6.6e-05,2]
[406011181,1771541412477,152.49,6.6e-05,2]
[406011182,1771541413069,152.49,6.6e-05,2]
[406011183,1771541413653,152.49,6.6e-05,2]
[406011184,1771541414255,152.49,6.6e-05,2]
[406011185,1771541414832,152.49,6.6e-05,2]
[406011186,1771541415408,152.49,6.6e-05,2]
[406011187,1771541415977,152.49,6.7e-05,2]
[406011188,1771541416594,152.49,6.7e-05,2]
[406011189,1771541417074,152.49,6.7e-05,2]
[406011190,1771541417651,152.49,6.7e-05,2]
[406011191,1771541418232,152.49,6.7e-05,2]
[406011192,1771541418833,152.49,6.7e-05,2]
[406011193,1771541419432,152.49,6.7e-05,2]
[406011194,1771541420065,152.49,6.7e-05,2]
[406011195,1771541420668,152.49,6.7e-05,2]
[406011196,1771541421218,152.49,6.7e-05,2]
[406011197,1771541421785,152.49,6.7e-05,2]
[406011198,1771541422417,152.49,6.8e-05,2]
[406011199,1771541422999,152.49,6.8e-05,2]
[406011200,1771541423582,152.49,6.8e-05,2]
[406011201,1771541424279,152.49,6.8e-05,2]
[406011202,1771541425030,152.49,6.8e-05,2]
[406011203,1771541425561,152.49,6.8e-05,2]
[406011204,1771541426146,152.49,6.8e-05,2]
[406011205,1771541426762,152.49,6.8e-05,2]
[406011206,1771541427361,152.49,6.8e-05,2]
[406011207,1771541427941,152.49,6.8e-05,2]
[406011208,1771541428523,152.49,6.8e-05,2]
[406011209,1771541429106,152.49,6.9e-05,2]
[406011210,1771541429694,152.49,6.9e-05,2]
[406011211,1771541430322,152.49,6.9e-05,2]
[406011212,1771541430906,152.49,6.9e-05,2]
[406011213,1771541431543,152.49,6.9e-05,2]
[406011231,1771541431971,-187.78006525,7.089e-05,2]
[406011232,1771541431980,-194.72792766,7.089e-05,2]
[406011233,1771541431989,-20.97294986,7.089e-05,2]
[406011234,1771541432001,-180.95991113,7.089e-05,2]
[406011235,1771541432010,-209.40437684,7.089e-05,2]
[406011236,1771541432019,-297.54038788,7.089e-05,2]
[406011237,1771541432029,-203.41990081,7.089e-05,2]
[406011245,1771541432122,152.49,6.9e-05,2]
[406011304,1771541445023,-296.58009919,7.089e-05,2]
[406011305,1771541445033,-203.41990081,7.089e-05,2]
[406011309,1771541858819,2178.8936961,7.001e-05,2]
[406011310,1771542062158,-300.0,7.085e-05,2]
[406011311,1771542062184,-300.0,7.085e-05,2]
[406011312,1771542062210,-300.0,7.085e-05,2]
[406011313,1771542062246,-300.0,7.085e-05,2]
[406011314,1771542062381,-558.0557494,7.085e-05,2]
[406011315,1771542091485,-300.0,7.084e-05,2]
[406011316,1771542091523,-600.0,7.085e-05,2]
[406011317,1771542120667,-300.0,7.085e-05,2]
[406011318,1771542255098,5000.0,7.001e-05,2]
[406011319,1771542277446,5000.0,7.001e-05,2]
[406011320,1771542300740,5000.0,7.001e-05,2]
[406011321,1771542305214,1149.908028,6.739e-05,2]
[406011322,1771542323012,5000.0,7.001e-05,2]
[406011323,1771542345706,5000.0,7.001e-05,2]
[406011324,1771542483295,186.47,3.436e-05,2]
[406011325,1771542526969,511.5546148,6.083e-05,2]
[406011326,1771542569982,5000.0,7.001e-05,2]
[406011352,1771542632136,-305.54513982,7.022e-05,2]
[406011365,1771542638566,-844.36288818,7.022e-05,2]
[406011366,1771542638576,-442.94985857,7.046e-05,2]
[406011367,1771542638585,-797.30974542,7.046e-05,2]
[406011368,1771542638594,-150.0,7.052e-05,2]
[406011369,1771542638603,-300.0,7.081e-05,2]
[406011370,1771542638613,-300.0,7.081e-05,2]
[406011371,1771542638622,-300.0,7.081e-05,2]
[406011372,1771542638632,-300.0,7.081e-05,2]
[406011373,1771542638641,-1200.0,7.081e-05,2]
[406011374,1771542638650,-500.0,7.083e-05,2]
[406011375,1771542638659,-500.0,7.083e-05,2]
[406011376,1771542638669,-500.0,7.083e-05,2]
[406011377,1771542638678,-500.0,7.083e-05,2]
[406011378,1771542638687,-500.0,7.083e-05,2]
[406011379,1771542638697,-500.0,7.083e-05,2]
[406011380,1771542638707,-500.0,7.083e-05,2]
[406011381,1771542638716,-500.0,7.083e-05,2]
[406011382,1771542638726,-500.0,7.083e-05,2]
[406011383,1771542638735,-500.0,7.083e-05,2]
[406011384,1771542638745,-500.0,7.083e-05,2]
[406011385,1771542638754,-500.0,7.083e-05,2]